[Event "44th Chess Olympiad Open 2022"]
[Site "Chennai"]
[Date "2022.07.30"]
[Round "2.79"]
[White "Kibrom Weldegebriel Beraki"]
[Black "Mannhart, Marcel"]
[Result "0-1"]
[WhiteElo "1793"]
[BlackElo "2110"]
[Annotator "NA RC"]
[PlyCount "108"]
[EventDate "2022.??.??"]
[TimeControl "60"]

1. d4 {[%emt 0:00:06]} d6 {[%emt 0:00:20]} 2. Nf3 {[%emt 0:00:25]} g6 {[%emt 0:
00:00]} 3. c4 {[%emt 0:00:10]} Bg7 {[%emt 0:00:05]} 4. Nc3 {[%emt 0:00:10]} c6
{[%emt 0:00:40]} 5. Bg5 {[%emt 0:01:44]} Nd7 {[%emt 0:01:46]} 6. e4 {[%emt 0:
00:00]} Qc7 {[%emt 0:02:37]} 7. Be2 {[%emt 0:00:58]} e5 {[%emt 0:05:17]} 8. O-O
{[%emt 0:00:32]} f6 {[%emt 0:00:14]} 9. Be3 {[%emt 0:01:45]} Nh6 {[%emt 0:00:
00]} 10. Nd2 {[%emt 0:03:07]} Nf7 {[%emt 0:01:14]} 11. c5 {[%emt 0:03:52]} dxc5
{[%emt 0:05:30]} 12. dxc5 {[%emt 0:01:06]} Nf8 {[%emt 0:02:32]} 13. Qb3 {
[%emt 0:05:18]} Ne6 {[%emt 0:02:13]} 14. Bc4 {[%emt 0:11:44]} Qe7 {[%emt 0:00:
00]} 15. Rfd1 {[%emt 0:10:56]} O-O {[%emt 0:00:58]} 16. Qa3 {[%emt 0:01:26]}
Rd8 {[%emt 0:06:51]} 17. Nf3 {[%emt 0:02:35]} Bf8 {[%emt 0:01:53]} 18. b4 {
[%emt 0:02:30]} Kg7 {[%emt 0:01:39]} 19. Qb3 {[%emt 0:01:15]} Nc7 {[%emt 0:00:
00]} 20. Ne2 {[%emt 0:04:10]} Be6 {[%emt 0:02:22]} 21. h4 {[%emt 0:03:18]} Bxc4
{[%emt 0:06:15]} 22. Qxc4 {[%emt 0:00:10]} Qe6 {[%emt 0:01:15]} 23. Qc2 {
[%emt 0:02:01]} h5 {[%emt 0:05:05]} 24. Ng3 {[%emt 0:01:39]} Rxd1+ {[%emt 0:00:
00]} 25. Rxd1 {[%emt 0:00:31]} a5 {[%emt 0:04:38]} 26. bxa5 {[%emt 0:04:00]}
Rxa5 {[%emt 0:00:30]} 27. a4 {[%emt 0:12:57]} Qc8 {[%emt 0:02:54]} 28. Nd2 {
[%emt 0:02:19]} Ne6 {[%emt 0:09:25]} 29. Nc4 {[%emt 0:01:27]} Ra6 {[%emt 0:00:
00]} 30. Nb6 {[%emt 0:02:22]} Qe8 {[%emt 0:00:16]} 31. Ne2 {[%emt 0:03:19]} Be7
{[%emt 0:01:31]} 32. Qc4 {[%emt 0:01:11]} Bd8 {[%emt 0:01:05]} 33. Nc8 {
[%emt 0:02:45]} Bc7 {[%emt 0:02:34]} 34. Nd6 {[%emt 0:01:33]} Bxd6 {[%emt 0:00:
00]} 35. cxd6 {[%emt 0:01:03]} Qd7 {[%emt 0:00:13]} 36. Qb4 {[%emt 0:03:14]} c5
{[%emt 0:01:46]} 37. Bxc5 {[%emt 0:01:33]} Rxa4 {[%emt 0:02:34]} 38. Qb6 {
[%emt 0:02:13]} Ra6 {[%emt 0:00:34]} 39. Qb4 {[%emt 0:00:59]} Nxc5 {[%emt 0:00:
00]} 40. Qxc5 {[%emt 0:00:28]} Rxd6 {[%emt 0:00:10]} 41. Rd5 {[%emt 0:31:43]}
Qc6 {[%emt 0:33:10]} 42. Qa5 {[%emt 0:03:51]} Qa6 {[%emt 0:03:38]} 43. Qd2 {
[%emt 0:00:00]} Rxd5 {[%emt 0:00:00]} 44. exd5 {[%emt 0:00:00]} Nd6 {[%emt 0:
00:00]} 45. Qb4 {[%emt 0:00:00]} Kf7 {[%emt 0:00:00]} 46. Qc5 {[%emt 0:00:00]}
Ne8 {[%emt 0:00:00]} 47. Nc3 {[%emt 0:00:00]} Qd6 {[%emt 0:00:00]} 48. Qb5 {
[%emt 0:00:00]} Qc7 {[%emt 0:00:00]} 49. Ne4 {[%emt 0:00:00]} Ke7 {[%emt 0:00:
00]} 50. Nc5 {[%emt 0:00:00]} Nd6 {[%emt 0:00:00]} 51. Qb4 {[%emt 0:00:00]} b6
{[%emt 0:00:00]} 52. Ne4 {[%emt 0:00:00]} Qc1+ {[%emt 0:00:00]} 53. Kh2 {
[%emt 0:00:00]} Qf4+ {[%emt 0:00:00]} 54. g3 {[%emt 0:00:00]} Qxe4 {[%emt 0:00:
00]} 0-1

[Event "44th Chess Olympiad Open 2022"]
[Site "Chennai"]
[Date "2022.07.30"]
[Round "2.80"]
[White "Smith, Michael A"]
[Black "Diarra, Sirike"]
[Result "0-1"]
[WhiteElo "1840"]
[BlackElo "1641"]
[Annotator "NA RC"]
[PlyCount "50"]
[EventDate "2022.??.??"]
[TimeControl "60"]

1. d4 {[%emt 0:00:05]} d5 {[%emt 0:00:36]} 2. Nf3 {[%emt 0:00:23]} Nf6 {
[%emt 0:00:16]} 3. g3 {[%emt 0:00:43]} e6 {[%emt 0:00:20]} 4. Bg2 {[%emt 0:00:
00]} Be7 {[%emt 0:00:13]} 5. O-O {[%emt 0:01:02]} O-O {[%emt 0:00:18]} 6. c4 {
[%emt 0:02:20]} Nbd7 {[%emt 0:02:47]} 7. Nc3 {[%emt 0:02:27]} dxc4 {[%emt 0:00:
00]} 8. Qc2 {[%emt 0:03:59]} Nb6 {[%emt 0:01:39]} 9. Rd1 {[%emt 0:01:25]} Nfd5
{[%emt 0:01:52]} 10. Ne5 {[%emt 0:03:33]} f6 {[%emt 0:01:04]} 11. Nxd5 {
[%emt 0:01:13]} exd5 {[%emt 0:00:55]} 12. Nf3 {[%emt 0:01:09]} Re8 {[%emt 0:00:
00]} 13. e4 {[%emt 0:04:40]} c6 {[%emt 0:00:08]} 14. exd5 {[%emt 0:02:31]} cxd5
{[%emt 0:01:09]} 15. Be3 {[%emt 0:02:25]} Be6 {[%emt 0:00:37]} 16. Rac1 {
[%emt 0:02:43]} Qd7 {[%emt 0:00:24]} 17. b3 {[%emt 0:02:50]} Ba3 {[%emt 0:00:
00]} 18. Ra1 {[%emt 0:01:02]} Bf5 {[%emt 0:05:10]} 19. Qc3 {[%emt 0:02:26]} a5
{[%emt 0:02:33]} 20. bxc4 {[%emt 0:03:43]} Nxc4 {[%emt 0:01:35]} 21. Bc1 {
[%emt 0:02:04]} Bb4 {[%emt 0:01:29]} 22. Qb3 {[%emt 0:00:32]} Re2 {[%emt 0:00:
00]} 23. a3 {[%emt 0:03:53]} Bc2 {[%emt 0:04:45]} 24. Qa2 {[%emt 0:00:13]} Bxd1
{[%emt 0:00:51]} 25. Qb1 {[%emt 0:00:02]} Bc2 {[%emt 0:01:35]} 0-1

[Event "44th Chess Olympiad Open 2022"]
[Site "Chennai"]
[Date "2022.07.30"]
[Round "2.80"]
[White "Conhoff, David"]
[Black "Coulibaly, Abdoulaye"]
[Result "0-1"]
[WhiteElo "1460"]
[BlackElo "1936"]
[Annotator "NA RC"]
[PlyCount "50"]
[EventDate "2022.??.??"]
[TimeControl "60"]

1. d4 {[%emt 0:00:07]} d5 {[%emt 0:00:23]} 2. Nf3 {[%emt 0:00:33]} Nf6 {
[%emt 0:00:19]} 3. Bf4 {[%emt 0:00:41]} Nc6 {[%emt 0:01:40]} 4. e3 {[%emt 0:00:
00]} e6 {[%emt 0:03:30]} 5. c4 {[%emt 0:04:45]} Bb4+ {[%emt 0:01:15]} 6. Nc3 {
[%emt 0:01:36]} O-O {[%emt 0:00:28]} 7. h3 {[%emt 0:04:14]} Ne4 {[%emt 0:02:28]
} 8. Qc2 {[%emt 0:03:05]} f5 {[%emt 0:00:59]} 9. Bd3 {[%emt 0:02:12]} Bd7 {
[%emt 0:02:31]} 10. O-O {[%emt 0:01:45]} Bxc3 {[%emt 0:01:19]} 11. bxc3 {
[%emt 0:00:58]} h6 {[%emt 0:00:16]} 12. c5 {[%emt 0:02:22]} b6 {[%emt 0:02:25]}
13. cxb6 {[%emt 0:06:06]} axb6 {[%emt 0:00:58]} 14. a4 {[%emt 0:03:21]} Na5 {
[%emt 0:03:45]} 15. Ne5 {[%emt 0:03:52]} c5 {[%emt 0:00:54]} 16. Rfc1 {[%emt 0:
00:00]} c4 {[%emt 0:01:59]} 17. Ra2 {[%emt 0:10:36]} cxd3 {[%emt 0:00:32]} 18.
Qxd3 {[%emt 0:00:35]} Nc4 {[%emt 0:01:33]} 19. Nxc4 {[%emt 0:01:18]} dxc4 {
[%emt 0:00:10]} 20. Qxc4 {[%emt 0:02:56]} Kh7 {[%emt 0:00:44]} 21. f3 {[%emt 0:
00:00]} Nf6 {[%emt 0:00:58]} 22. Rca1 {[%emt 0:06:03]} Nd5 {[%emt 0:00:21]} 23.
Kf2 {[%emt 0:01:53]} Rc8 {[%emt 0:00:23]} 24. Qa6 {[%emt 0:03:44]} Nxc3 {
[%emt 0:01:28]} 25. Rc2 {[%emt 0:06:17]} Ne4+ {[%emt 0:00:14]} 0-1

[Event "44th Chess Olympiad Open 2022"]
[Site "Chennai"]
[Date "2022.07.30"]
[Round "2.81"]
[White "Belzo, Krzysztof"]
[Black "Kourakoumba, Florent"]
[Result "1-0"]
[WhiteElo "2080"]
[BlackElo "1677"]
[Annotator "NA RC"]
[PlyCount "85"]
[EventDate "2022.??.??"]
[TimeControl "60"]

1. c4 {[%emt 0:00:04]} e5 {[%emt 0:00:33]} 2. Nc3 {[%emt 0:00:06]} Nf6 {
[%emt 0:00:49]} 3. g3 {[%emt 0:00:09]} Be7 {[%emt 0:01:07]} 4. Bg2 {[%emt 0:00:
00]} c6 {[%emt 0:01:47]} 5. d4 {[%emt 0:00:39]} exd4 {[%emt 0:00:55]} 6. Qxd4 {
[%emt 0:00:08]} O-O {[%emt 0:00:47]} 7. Nf3 {[%emt 0:00:19]} h6 {[%emt 0:00:37]
} 8. O-O {[%emt 0:00:06]} Na6 {[%emt 0:00:28]} 9. e4 {[%emt 0:00:52]} d6 {
[%emt 0:00:47]} 10. Bf4 {[%emt 0:00:39]} Nb4 {[%emt 0:00:24]} 11. Rad1 {
[%emt 0:01:22]} c5 {[%emt 0:00:40]} 12. Qd2 {[%emt 0:01:29]} Ne8 {[%emt 0:00:
00]} 13. a3 {[%emt 0:05:22]} Nc6 {[%emt 0:00:53]} 14. Nb5 {[%emt 0:01:38]} a6 {
[%emt 0:01:09]} 15. Nxd6 {[%emt 0:00:56]} Nxd6 {[%emt 0:00:30]} 16. Bxd6 {
[%emt 0:00:06]} Bxd6 {[%emt 0:00:44]} 17. Qxd6 {[%emt 0:00:05]} Qxd6 {[%emt 0:
00:00]} 18. Rxd6 {[%emt 0:00:02]} Be6 {[%emt 0:00:55]} 19. b3 {[%emt 0:01:10]}
Rad8 {[%emt 0:00:17]} 20. Rfd1 {[%emt 0:02:04]} Rxd6 {[%emt 0:00:50]} 21. Rxd6
{[%emt 0:00:02]} Rd8 {[%emt 0:00:37]} 22. e5 {[%emt 0:03:01]} Rxd6 {[%emt 0:00:
00]} 23. exd6 {[%emt 0:00:02]} Kf8 {[%emt 0:00:39]} 24. Nd2 {[%emt 0:00:52]}
Ke8 {[%emt 0:00:17]} 25. Ne4 {[%emt 0:04:19]} b6 {[%emt 0:00:45]} 26. Nxc5 {
[%emt 0:00:36]} bxc5 {[%emt 0:01:05]} 27. Bxc6+ {[%emt 0:00:04]} Bd7 {[%emt 0:
00:00]} 28. Bd5 {[%emt 0:04:40]} a5 {[%emt 0:00:25]} 29. f4 {[%emt 0:00:24]}
Bf5 {[%emt 0:00:37]} 30. Bc6+ {[%emt 0:00:14]} Kd8 {[%emt 0:00:27]} 31. Kf2 {
[%emt 0:00:15]} Bc2 {[%emt 0:00:09]} 32. Ba4 {[%emt 0:00:13]} f6 {[%emt 0:00:
00]} 33. Ke3 {[%emt 0:00:09]} Bf5 {[%emt 0:00:34]} 34. Kd2 {[%emt 0:01:07]} g6
{[%emt 0:00:13]} 35. Kc3 {[%emt 0:00:10]} g5 {[%emt 0:00:24]} 36. b4 {[%emt 0:
00:00]} axb4+ {[%emt 0:00:48]} 37. axb4 {[%emt 0:00:04]} cxb4+ {[%emt 0:00:31]}
38. Kxb4 {[%emt 0:00:03]} h5 {[%emt 0:01:20]} 39. c5 {[%emt 0:00:16]} Be4 {
[%emt 0:00:23]} 40. c6 {[%emt 0:00:13]} Bf5 {[%emt 0:01:13]} 41. Kc5 {[%emt 0:
00:00]} h4 {[%emt 0:30:45]} 42. Bb5 {[%emt 0:00:26]} Bc8 {[%emt 0:00:18]} 43.
c7# {[%emt 0:00:12]} 1-0

[Event "44th Chess Olympiad Open 2022"]
[Site "Chennai"]
[Date "2022.07.30"]
[Round "2.81"]
[White "Koualet-Bebondi, Vianney Archeveq"]
[Black "Carpenter, Paul A"]
[Result "0-1"]
[WhiteElo "1679"]
[BlackElo "1938"]
[Annotator "NA"]
[PlyCount "100"]
[EventDate "2022.??.??"]
[TimeControl "60"]

1. e4 {[%emt 0:00:05]} d6 {[%emt 0:00:20]} 2. Bc4 {[%emt 0:01:06]} Nf6 {
[%emt 0:00:35]} 3. d3 {[%emt 0:02:09]} e5 {[%emt 0:00:42]} 4. Nf3 {[%emt 0:00:
00]} h6 {[%emt 0:02:11]} 5. h3 {[%emt 0:00:29]} Be7 {[%emt 0:00:55]} 6. O-O {
[%emt 0:00:17]} Nbd7 {[%emt 0:01:26]} 7. Be3 {[%emt 0:00:37]} c6 {[%emt 0:00:
00]} 8. Nc3 {[%emt 0:00:56]} Qc7 {[%emt 0:01:33]} 9. Nh2 {[%emt 0:00:44]} g5 {
[%emt 0:01:30]} 10. a4 {[%emt 0:06:12]} Nf8 {[%emt 0:01:24]} 11. b4 {[%emt 0:
00:00]} Ng6 {[%emt 0:01:49]} 12. b5 {[%emt 0:04:21]} Bd7 {[%emt 0:07:10]} 13.
a5 {[%emt 0:01:37]} Qc8 {[%emt 0:03:02]} 14. b6 {[%emt 0:04:46]} a6 {[%emt 0:
00:00]} 15. Qb1 {[%emt 0:03:44]} Bxh3 {[%emt 0:01:42]} 16. gxh3 {[%emt 0:01:43]
} Qxh3 {[%emt 0:01:13]} 17. f3 {[%emt 0:00:35]} g4 {[%emt 0:08:19]} 18. Rf2 {
[%emt 0:03:16]} g3 {[%emt 0:02:37]} 19. Re2 {[%emt 0:01:32]} gxh2+ {[%emt 0:00:
00]} 20. Rxh2 {[%emt 0:00:11]} Qxf3 {[%emt 0:00:20]} 21. Qe1 {[%emt 0:03:01]}
Ng4 {[%emt 0:02:33]} 22. Qe2 {[%emt 0:05:17]} Qxe3+ {[%emt 0:03:03]} 23. Qxe3 {
[%emt 0:00:16]} Nxe3 {[%emt 0:00:06]} 24. Bb3 {[%emt 0:00:16]} Nf4 {[%emt 0:00:
00]} 25. Re1 {[%emt 0:07:11]} Ng4 {[%emt 0:01:14]} 26. Rh1 {[%emt 0:01:19]} Rg8
{[%emt 0:02:45]} 27. Kf1 {[%emt 0:00:54]} h5 {[%emt 0:01:40]} 28. Ne2 {[%emt 0:
00:00]} h4 {[%emt 0:03:40]} 29. Nxf4 {[%emt 0:00:28]} exf4 {[%emt 0:00:13]} 30.
Ke2 {[%emt 0:00:35]} Ne3 {[%emt 0:01:32]} 31. Reg1 {[%emt 0:00:45]} Kd7 {
[%emt 0:20:15]} 32. Bxf7 {[%emt 0:01:58]} Rxg1 {[%emt 0:03:50]} 33. Rxg1 {
[%emt 0:00:24]} Nxc2 {[%emt 0:00:35]} 34. Rg6 {[%emt 0:05:37]} Nd4+ {[%emt 0:
00:00]} 35. Kf2 {[%emt 0:00:35]} Rh8 {[%emt 0:00:16]} 36. Rg1 {[%emt 0:02:59]}
h3 {[%emt 0:00:09]} 37. Rb1 {[%emt 0:09:27]} Bh4+ {[%emt 0:00:49]} 38. Kg1 {
[%emt 0:00:32]} h2+ {[%emt 0:00:59]} 39. Kh1 {[%emt 0:00:24]} Bg3 {[%emt 0:00:
00]} 40. Bb3 {[%emt 0:01:32]} Nxb3 {[%emt 0:01:32]} 41. Rxb3 {[%emt 0:30:28]}
c5 {[%emt 0:31:21]} 42. Rc3 {[%emt 0:00:42]} Ke6 {[%emt 0:02:38]} 43. Rc1 {
[%emt 0:02:04]} Ke5 {[%emt 0:00:20]} 44. Rc4 {[%emt 0:01:43]} f3 {[%emt 0:00:
00]} 45. Rc1 {[%emt 0:01:26]} f2 {[%emt 0:00:20]} 46. Rf1 {[%emt 0:00:59]} Kd4
{[%emt 0:00:52]} 47. Rd1 {[%emt 0:01:09]} Rg8 {[%emt 0:00:25]} 48. Kg2 {
[%emt 0:03:46]} Ke3 {[%emt 0:00:03]} 49. Rc1 {[%emt 0:03:12]} Bf4+ {[%emt 0:00:
00]} 50. Kh3 {[%emt 0:00:37]} Kf3 {[%emt 0:00:20]} 0-1

[Event "44th Chess Olympiad Open 2022"]
[Site "Chennai"]
[Date "2022.07.30"]
[Round "2.82"]
[White "Boidiya, Sidi"]
[Black "Mohamed Ali Dima"]
[Result "1-0"]
[WhiteElo "1997"]
[BlackElo "1582"]
[Annotator "NA"]
[PlyCount "99"]
[EventDate "2022.??.??"]
[TimeControl "60"]

1. e4 {[%emt 0:00:03]} d6 {[%emt 0:00:12]} 2. d4 {[%emt 0:00:04]} Nd7 {[%emt 0:
00:00]} 3. Nc3 {[%emt 0:00:12]} e5 {[%emt 0:00:18]} 4. Be3 {[%emt 0:00:21]}
Ngf6 {[%emt 0:00:35]} 5. f3 {[%emt 0:00:07]} Be7 {[%emt 0:00:39]} 6. Bc4 {
[%emt 0:00:06]} h6 {[%emt 0:00:44]} 7. Qd2 {[%emt 0:00:24]} Nb6 {[%emt 0:01:50]
} 8. Be2 {[%emt 0:02:48]} c6 {[%emt 0:01:23]} 9. h4 {[%emt 0:01:02]} Nh5 {
[%emt 0:00:44]} 10. Bf2 {[%emt 0:00:55]} Nf4 {[%emt 0:02:11]} 11. Bf1 {[%emt 0:
00:00]} g5 {[%emt 0:03:49]} 12. g3 {[%emt 0:03:33]} Ne6 {[%emt 0:00:53]} 13. d5
{[%emt 0:03:49]} cxd5 {[%emt 0:06:20]} 14. exd5 {[%emt 0:00:32]} Nc7 {[%emt 0:
00:00]} 15. hxg5 {[%emt 0:01:30]} Bxg5 {[%emt 0:00:15]} 16. f4 {[%emt 0:00:17]}
exf4 {[%emt 0:00:58]} 17. gxf4 {[%emt 0:01:48]} Qe7+ {[%emt 0:00:06]} 18. Be2 {
[%emt 0:00:22]} Bf6 {[%emt 0:00:57]} 19. O-O-O {[%emt 0:00:21]} Bd7 {[%emt 0:
00:00]} 20. Re1 {[%emt 0:02:18]} O-O-O {[%emt 0:00:54]} 21. Bxb6 {[%emt 0:00:
00]} axb6 {[%emt 0:00:01]} 22. Bg4 {[%emt 0:00:16]} Qf8 {[%emt 0:00:14]} 23.
Bxd7+ {[%emt 0:00:05]} Rxd7 {[%emt 0:00:12]} 24. Na4 {[%emt 0:00:16]} Na8 {
[%emt 0:01:51]} 25. Qb4 {[%emt 0:00:20]} Qd8 {[%emt 0:01:15]} 26. Nf3 {[%emt 0:
00:00]} Rc7 {[%emt 0:00:36]} 27. Kb1 {[%emt 0:00:46]} Rd7 {[%emt 0:01:41]} 28.
Nd2 {[%emt 0:00:51]} Kb8 {[%emt 0:05:13]} 29. Nc4 {[%emt 0:00:44]} Bd4 {
[%emt 0:00:25]} 30. Nc3 {[%emt 0:03:18]} Qc7 {[%emt 0:04:38]} 31. Nb5 {[%emt 0:
00:00]} Qc5 {[%emt 0:00:03]} 32. Qa4 {[%emt 0:00:13]} Nc7 {[%emt 0:01:42]} 33.
Ncxd6 {[%emt 0:06:23]} Na6 {[%emt 0:06:06]} 34. Qxd4 {[%emt 0:04:44]} Qxd4 {
[%emt 0:00:16]} 35. Nxd4 {[%emt 0:00:01]} Rxd6 {[%emt 0:00:15]} 36. c4 {
[%emt 0:00:11]} Nc5 {[%emt 0:01:10]} 37. Re7 {[%emt 0:02:48]} Rd7 {[%emt 0:00:
00]} 38. Rxh6 {[%emt 0:04:06]} Rxe7 {[%emt 0:02:26]} 39. Rxh8+ {[%emt 0:00:07]}
Kc7 {[%emt 0:00:10]} 40. d6+ {[%emt 0:00:13]} Kxd6 {[%emt 0:00:20]} 41. Nf5+ {
[%emt 0:30:00]} Kd7 {[%emt 0:30:07]} 42. Nxe7 {[%emt 0:00:06]} Kxe7 {[%emt 0:
00:00]} 43. Rb8 {[%emt 0:00:42]} Kf6 {[%emt 0:01:39]} 44. b4 {[%emt 0:00:09]}
Nd3 {[%emt 0:00:11]} 45. Rxb7 {[%emt 0:00:12]} Nxf4 {[%emt 0:00:13]} 46. Rxb6+
{[%emt 0:00:07]} Ke5 {[%emt 0:00:28]} 47. a4 {[%emt 0:00:12]} f5 {[%emt 0:00:
00]} 48. a5 {[%emt 0:00:11]} Ne6 {[%emt 0:00:40]} 49. Rxe6+ {[%emt 0:01:12]}
Kxe6 {[%emt 0:00:02]} 50. a6 {[%emt 0:00:03]} 1-0

[Event "44th Chess Olympiad Open 2022"]
[Site "Chennai"]
[Date "2022.07.30"]
[Round "2.82"]
[White "Hassan Sidi Mohamed Cheikh"]
[Black "Mohamed Ali Djama"]
[Result "1-0"]
[WhiteElo "1825"]
[BlackElo "1629"]
[Annotator "NA RC"]
[PlyCount "129"]
[EventDate "2022.??.??"]
[TimeControl "60"]

1. e4 {[%emt 0:00:07]} e5 {[%emt 0:00:01]} 2. Nf3 {[%emt 0:00:20]} Nc6 {
[%emt 0:00:01]} 3. d4 {[%emt 0:00:11]} exd4 {[%emt 0:00:13]} 4. Bc4 {[%emt 0:
00:00]} Be7 {[%emt 0:02:40]} 5. c3 {[%emt 0:00:18]} d6 {[%emt 0:02:25]} 6. Qb3
{[%emt 0:00:53]} Na5 {[%emt 0:04:13]} 7. Bxf7+ {[%emt 0:00:29]} Kf8 {[%emt 0:
00:00]} 8. Qa4 {[%emt 0:00:15]} c6 {[%emt 0:00:03]} 9. Bxg8 {[%emt 0:01:56]}
Rxg8 {[%emt 0:00:15]} 10. Qxd4 {[%emt 0:00:22]} c5 {[%emt 0:06:20]} 11. Qd3 {
[%emt 0:01:49]} Bd7 {[%emt 0:00:16]} 12. Bf4 {[%emt 0:01:04]} Be6 {[%emt 0:00:
00]} 13. Nbd2 {[%emt 0:01:11]} g5 {[%emt 0:00:28]} 14. Be3 {[%emt 0:03:15]} g4
{[%emt 0:04:15]} 15. Bh6+ {[%emt 0:01:52]} Kf7 {[%emt 0:00:56]} 16. Ng1 {
[%emt 0:07:47]} Nc6 {[%emt 0:11:27]} 17. f4 {[%emt 0:04:47]} gxf3 {[%emt 0:00:
00]} 18. Qxf3+ {[%emt 0:00:24]} Ke8 {[%emt 0:00:02]} 19. Ne2 {[%emt 0:02:46]}
Ne5 {[%emt 0:00:38]} 20. Qh5+ {[%emt 0:01:31]} Bf7 {[%emt 0:00:01]} 21. Qh3 {
[%emt 0:00:16]} Rg6 {[%emt 0:05:22]} 22. Nf4 {[%emt 0:18:34]} Rxh6 {[%emt 0:00:
00]} 23. Qxh6 {[%emt 0:00:15]} Bg5 {[%emt 0:00:00]} 24. Qxh7 {[%emt 0:02:55]}
Bxf4 {[%emt 0:01:54]} 25. Qh8+ {[%emt 0:00:21]} Kd7 {[%emt 0:01:31]} 26. Qh3+ {
[%emt 0:00:26]} Kc7 {[%emt 0:00:33]} 27. Nb3 {[%emt 0:02:29]} c4 {[%emt 0:00:
00]} 28. O-O {[%emt 0:04:14]} Qg5 {[%emt 0:01:36]} 29. Nd4 {[%emt 0:00:32]} Re8
{[%emt 0:03:19]} 30. Rad1 {[%emt 0:00:54]} Nd3 {[%emt 0:00:30]} 31. b3 {
[%emt 0:02:44]} Bh5 {[%emt 0:00:41]} 32. Ne6+ {[%emt 0:01:55]} Rxe6 {[%emt 0:
00:00]} 33. Qxe6 {[%emt 0:00:12]} Bxd1 {[%emt 0:01:24]} 34. Qxc4+ {[%emt 0:00:
00]} Nc5 {[%emt 0:00:09]} 35. Rxd1 {[%emt 0:00:12]} Kb8 {[%emt 0:04:03]} 36. b4
{[%emt 0:02:42]} Qg4 {[%emt 0:02:35]} 37. Rf1 {[%emt 0:01:02]} Nxe4 {[%emt 0:
00:00]} 38. Rf3 {[%emt 0:06:48]} a6 {[%emt 0:07:23]} 39. Qf7 {[%emt 0:11:32]}
Be5 {[%emt 0:01:07]} 40. Qf5 {[%emt 0:06:35]} Qxf5 {[%emt 0:04:03]} 41. Rxf5 {
[%emt 0:30:07]} Nxc3 {[%emt 0:30:01]} 42. h4 {[%emt 0:00:42]} Ne2+ {[%emt 0:00:
00]} 43. Kf2 {[%emt 0:00:45]} Nd4 {[%emt 0:00:00]} 44. Rf7 {[%emt 0:00:28]} Ka7
{[%emt 0:02:14]} 45. g4 {[%emt 0:00:23]} Kb6 {[%emt 0:00:00]} 46. g5 {[%emt 0:
00:00]} Ne6 {[%emt 0:00:12]} 47. Kf3 {[%emt 0:01:34]} Kc6 {[%emt 0:03:30]} 48.
Ke4 {[%emt 0:00:52]} Bg3 {[%emt 0:01:10]} 49. Kf5 {[%emt 0:03:32]} Bxh4 {
[%emt 0:01:09]} 50. g6 {[%emt 0:01:01]} Kd5 {[%emt 0:05:59]} 51. Rxb7 {[%emt 0:
00:00]} Nd4+ {[%emt 0:00:29]} 52. Kg4 {[%emt 0:00:12]} Bf6 {[%emt 0:00:04]} 53.
Ra7 {[%emt 0:02:00]} Kc4 {[%emt 0:00:56]} 54. Rxa6 {[%emt 0:01:17]} Kxb4 {
[%emt 0:00:25]} 55. Rxd6 {[%emt 0:00:19]} Be5 {[%emt 0:00:26]} 56. Rd5 {
[%emt 0:00:42]} Bg7 {[%emt 0:00:03]} 57. Rd7 {[%emt 0:00:48]} Be5 {[%emt 0:00:
00]} 58. Kg5 {[%emt 0:02:27]} Ka3 {[%emt 0:03:31]} 59. Ra7+ {[%emt 0:00:07]}
Kb4 {[%emt 0:00:09]} 60. Kh6 {[%emt 0:02:16]} Nb5 {[%emt 0:00:02]} 61. Re7 {
[%emt 0:00:57]} Bf6 {[%emt 0:00:07]} 62. Rf7 {[%emt 0:00:45]} Bc3 {[%emt 0:00:
00]} 63. Rf4+ {[%emt 0:00:33]} Ka3 {[%emt 0:00:12]} 64. Rf3 {[%emt 0:00:15]}
Kxa2 {[%emt 0:00:58]} 65. Rxc3 {[%emt 0:00:14]} 1-0

[Event "44th Chess Olympiad Open 2022"]
[Site "Chennai"]
[Date "2022.07.30"]
[Round "2.83"]
[White "Stratonowitsch, Andre"]
[Black "Ayyad, Maher"]
[Result "1/2-1/2"]
[WhiteElo "2142"]
[BlackElo "2101"]
[Annotator "NA RC"]
[PlyCount "59"]
[EventDate "2022.??.??"]
[TimeControl "60"]

1. e4 {[%emt 0:00:30]} c5 {[%emt 0:00:30]} 2. Nf3 {[%emt 0:00:30]} e6 {[%emt 0:
00:00]} 3. d4 {[%emt 0:00:00]} cxd4 {[%emt 0:00:00]} 4. Nxd4 {[%emt 0:00:00]}
Nf6 {[%emt 0:00:00]} 5. Nc3 {[%emt 0:00:00]} Nc6 {[%emt 0:00:00]} 6. Ndb5 {
[%emt 0:00:30]} Bb4 {[%emt 0:00:03]} 7. a3 {[%emt 0:00:17]} Bxc3+ {[%emt 0:00:
00]} 8. Nxc3 {[%emt 0:00:06]} d5 {[%emt 0:00:05]} 9. exd5 {[%emt 0:00:42]} exd5
{[%emt 0:00:06]} 10. Bd3 {[%emt 0:00:36]} d4 {[%emt 0:00:13]} 11. Qe2+ {
[%emt 0:01:09]} Be6 {[%emt 0:00:30]} 12. Ne4 {[%emt 0:00:30]} Nxe4 {[%emt 0:00:
00]} 13. Qxe4 {[%emt 0:00:30]} Qa5+ {[%emt 0:01:06]} 14. Bd2 {[%emt 0:01:31]}
Qe5 {[%emt 0:00:07]} 15. O-O-O {[%emt 0:06:33]} Qxe4 {[%emt 0:01:52]} 16. Bxe4
{[%emt 0:00:06]} O-O {[%emt 0:00:30]} 17. Bxc6 {[%emt 0:00:30]} bxc6 {[%emt 0:
00:00]} 18. Bb4 {[%emt 0:03:00]} Rfd8 {[%emt 0:00:22]} 19. Bc5 {[%emt 0:01:36]}
d3 {[%emt 0:02:01]} 20. Rxd3 {[%emt 0:04:12]} Rxd3 {[%emt 0:00:08]} 21. cxd3 {
[%emt 0:00:07]} a5 {[%emt 0:00:25]} 22. Re1 {[%emt 0:03:43]} a4 {[%emt 0:00:21]
} 23. Bb4 {[%emt 0:08:49]} Rc8 {[%emt 0:01:05]} 24. d4 {[%emt 0:25:41]} Rd8 {
[%emt 0:02:58]} 25. Bc5 {[%emt 0:00:24]} Re8 {[%emt 0:00:15]} 26. Kd2 {[%emt 0:
00:00]} f6 {[%emt 0:00:40]} 27. Kc3 {[%emt 0:08:12]} Kf7 {[%emt 0:00:08]} 28.
g3 {[%emt 0:01:32]} Bd5 {[%emt 0:00:11]} 29. Rxe8 {[%emt 0:00:52]} Kxe8 {
[%emt 0:00:09]} 30. Kb4 {[%emt 0:01:00]} 1/2-1/2

[Event "44th Chess Olympiad Open 2022"]
[Site "Chennai"]
[Date "2022.07.30"]
[Round "2.83"]
[White "Shaker, Musab"]
[Black "Ramachandran, R..."]
[Result "1-0"]
[WhiteElo "1705"]
[BlackElo "1994"]
[Annotator "NA RC"]
[PlyCount "59"]
[EventDate "2022.??.??"]
[TimeControl "60"]

1. d4 {[%emt 0:00:04]} d5 {[%emt 0:00:31]} 2. Nf3 {[%emt 0:00:00]} Nf6 {
[%emt 0:00:30]} 3. Bf4 {[%emt 0:00:00]} g6 {[%emt 0:01:19]} 4. c4 {[%emt 0:00:
00]} Bg7 {[%emt 0:00:51]} 5. e3 {[%emt 0:00:12]} O-O {[%emt 0:00:28]} 6. Be2 {
[%emt 0:00:53]} Nc6 {[%emt 0:01:22]} 7. Nc3 {[%emt 0:00:33]} Bf5 {[%emt 0:00:
00]} 8. O-O {[%emt 0:08:59]} Re8 {[%emt 0:00:32]} 9. h3 {[%emt 0:17:24]} Ne4 {
[%emt 0:01:01]} 10. Nxd5 {[%emt 0:02:15]} e5 {[%emt 0:01:40]} 11. dxe5 {
[%emt 0:04:03]} Nxe5 {[%emt 0:02:40]} 12. Nxe5 {[%emt 0:13:03]} Bxe5 {[%emt 0:
00:00]} 13. Bxe5 {[%emt 0:03:25]} Rxe5 {[%emt 0:00:35]} 14. Bg4 {[%emt 0:04:25]
} Bxg4 {[%emt 0:01:21]} 15. Qxg4 {[%emt 0:02:21]} c6 {[%emt 0:02:01]} 16. Qf4 {
[%emt 0:08:00]} Qg5 {[%emt 0:03:51]} 17. Qxg5 {[%emt 0:06:58]} Nxg5 {[%emt 0:
00:00]} 18. f4 {[%emt 0:03:27]} Nxh3+ {[%emt 0:00:16]} 19. gxh3 {[%emt 0:00:33]
} cxd5 {[%emt 0:15:35]} 20. fxe5 {[%emt 0:00:15]} dxc4 {[%emt 0:00:06]} 21.
Rfd1 {[%emt 0:01:35]} b5 {[%emt 0:01:02]} 22. Rd5 {[%emt 0:00:38]} a6 {[%emt 0:
00:00]} 23. Rad1 {[%emt 0:00:41]} Kg7 {[%emt 0:00:18]} 24. Rd8 {[%emt 0:00:21]}
Ra7 {[%emt 0:00:45]} 25. R1d7 {[%emt 0:00:09]} Rxd7 {[%emt 0:00:17]} 26. Rxd7 {
[%emt 0:00:17]} b4 {[%emt 0:00:21]} 27. e6 {[%emt 0:00:30]} c3 {[%emt 0:00:10]}
28. Rxf7+ {[%emt 0:00:26]} Kh6 {[%emt 0:00:07]} 29. bxc3 {[%emt 0:00:18]} bxc3
{[%emt 0:00:02]} 30. Rc7 {[%emt 0:00:10]} 1-0